[Event "Titled Tuesday Blitz November 29 Late 2022"]
[White "Vasques, Antonio Pedro Freixial"]
[Black "Espinosa, Pedro"]
[WhiteFideId "1908332"]
[BlackFideId "30921066"]
[WhiteElo "2243"]
[BlackElo "2016"]
[Result "0-1"]
[Round "07"]
[TimeControl "180+1"]
[Date "2022.11.30"]
[WhiteClock "0:00:55"]
[BlackClock "0:01:31"]

1. e4 {[%clk 0:03:00]}  c5 {[%clk 0:02:59]} 2. Nc3 {[%clk 0:03:00]}  Nc6 {[%clk 0:02:59]} 3. Bb5 {[%clk 0:03:00]}  Nd4 {[%clk 0:02:58]} 4. Nf3 {[%clk 0:03:00]}  Nxb5 {[%clk 0:02:58]} 5. Nxb5 {[%clk 0:03:01]}  a6 {[%clk 0:02:59]} 6. Nc3 {[%clk 0:03:01]}  g6 {[%clk 0:02:55]} 7. d4 {[%clk 0:03:01]}  Bg7 {[%clk 0:02:55]} 8. O-O {[%clk 0:02:55]}  cxd4 {[%clk 0:02:48]} 9. Nxd4 {[%clk 0:02:56]}  d6 {[%clk 0:02:48]} 10. Bg5 {[%clk 0:02:13]}  Nf6 {[%clk 0:02:46]} 11. Re1 {[%clk 0:02:14]}  O-O {[%clk 0:02:46]} 12. Nb3 {[%clk 0:02:14]}  h6 {[%clk 0:02:43]} 13. Bh4 {[%clk 0:02:12]}  g5 {[%clk 0:02:43]} 14. Bg3 {[%clk 0:02:12]}  Bg4 {[%clk 0:02:43]} 15. f3 {[%clk 0:02:10]}  Be6 {[%clk 0:02:42]} 16. Qd2 {[%clk 0:02:06]}  Nh5 {[%clk 0:02:40]} 17. Bf2 {[%clk 0:02:04]}  Nf4 {[%clk 0:02:40]} 18. a4 {[%clk 0:02:01]}  Bxb3 {[%clk 0:02:31]} 19. cxb3 {[%clk 0:02:02]}  Rc8 {[%clk 0:02:30]} 20. Nd5 {[%clk 0:01:59]}  Nxd5 {[%clk 0:02:17]} 21. exd5 {[%clk 0:02:00]}  Bf6 {[%clk 0:02:16]} 22. Bd4 {[%clk 0:01:56]}  Kg7 {[%clk 0:02:06]} 23. h4 {[%clk 0:01:51]}  Kg6 {[%clk 0:01:41]} 24. hxg5 {[%clk 0:01:02]}  hxg5 {[%clk 0:01:38]} 25. Qd3+ {[%clk 0:01:00]}  Kg7 {[%clk 0:01:38]} 26. Bxf6+ {[%clk 0:00:59]}  exf6 {[%clk 0:01:39]} 27. Qf5 {[%clk 0:00:58]}  Qb6+ {[%clk 0:01:38]} 28. Kh2 {[%clk 0:00:55]}  Qf2 {[%clk 0:01:31]} 0-1


[Site "https://www.chess.com"]

[Event "Titled Tuesday Blitz November 29 Late 2022"]
[White "Wirig, Anthony"]
[Black "Pranav, V"]
[WhiteFideId "615013"]
[BlackFideId "25060783"]
[WhiteElo "2487"]
[BlackElo "2430"]
[Result "1-0"]
[Round "07"]
[TimeControl "180+1"]
[Date "2022.11.30"]
[WhiteClock "0:00:09"]
[BlackClock "0:00:01"]

1. c4 {[%clk 0:02:54]}  e5 {[%clk 0:02:58]} 2. g3 {[%clk 0:02:54]}  Nf6 {[%clk 0:02:57]} 3. Bg2 {[%clk 0:02:55]}  c6 {[%clk 0:02:57]} 4. d4 {[%clk 0:02:53]}  e4 {[%clk 0:02:56]} 5. Nc3 {[%clk 0:02:49]}  d5 {[%clk 0:02:56]} 6. cxd5 {[%clk 0:02:49]}  cxd5 {[%clk 0:02:57]} 7. Bg5 {[%clk 0:02:49]}  Be6 {[%clk 0:02:57]} 8. Bxf6 {[%clk 0:02:44]}  gxf6 {[%clk 0:02:27]} 9. e3 {[%clk 0:02:42]}  Nc6 {[%clk 0:02:27]} 10. Nge2 {[%clk 0:02:36]}  Bd6 {[%clk 0:02:26]} 11. Qb3 {[%clk 0:02:29]}  Rb8 {[%clk 0:02:21]} 12. Nf4 {[%clk 0:02:08]}  Bxf4 {[%clk 0:02:20]} 13. gxf4 {[%clk 0:02:09]}  a6 {[%clk 0:02:14]} 14. Bf1 {[%clk 0:01:38]}  b5 {[%clk 0:02:13]} 15. Rg1 {[%clk 0:01:31]}  f5 {[%clk 0:02:04]} 16. a4 {[%clk 0:01:22]}  b4 {[%clk 0:02:04]} 17. Ne2 {[%clk 0:00:58]}  Na5 {[%clk 0:02:03]} 18. Qa2 {[%clk 0:00:57]}  Rc8 {[%clk 0:02:00]} 19. Ng3 {[%clk 0:00:54]}  Qb6 {[%clk 0:01:59]} 20. Be2 {[%clk 0:00:49]}  b3 {[%clk 0:01:52]} 21. Qa3 {[%clk 0:00:45]}  Rc2 {[%clk 0:01:52]} 22. Kf1 {[%clk 0:00:31]}  Kd7 {[%clk 0:01:44]} 23. Kg2 {[%clk 0:00:26]}  Qd6 {[%clk 0:01:35]} 24. Rgb1 {[%clk 0:00:17]}  Qxa3 {[%clk 0:01:34]} 25. Rxa3 {[%clk 0:00:18]}  h5 {[%clk 0:01:20]} 26. h4 {[%clk 0:00:17]}  Rb8 {[%clk 0:01:17]} 27. Bxa6 {[%clk 0:00:15]}  Nc4 {[%clk 0:01:15]} 28. Bb5+ {[%clk 0:00:14]}  Kd6 {[%clk 0:01:01]} 29. Bxc4 {[%clk 0:00:12]}  dxc4 {[%clk 0:01:02]} 30. a5 {[%clk 0:00:12]}  c3 {[%clk 0:00:59]} 31. bxc3 {[%clk 0:00:12]}  b2 {[%clk 0:01:00]} 32. a6 {[%clk 0:00:10]}  Bc4 {[%clk 0:00:39]} 33. a7 {[%clk 0:00:10]}  Ra8 {[%clk 0:00:40]} 34. Ra4 {[%clk 0:00:09]}  Bd3 {[%clk 0:00:33]} 35. Rb4 {[%clk 0:00:10]}  Rxa7 {[%clk 0:00:26]} 36. R4xb2 {[%clk 0:00:09]}  Rxc3 {[%clk 0:00:18]} 37. Nxf5+ {[%clk 0:00:09]}  Ke6 {[%clk 0:00:18]} 38. Ng3 {[%clk 0:00:09]}  Bxb1 {[%clk 0:00:17]} 39. Rxb1 {[%clk 0:00:10]}  Rc2 {[%clk 0:00:17]} 40. Rb6+ {[%clk 0:00:09]}  Kd5 {[%clk 0:00:17]} 41. Rb5+ {[%clk 0:00:09]}  Kc6 {[%clk 0:00:06]} 42. Rxh5 {[%clk 0:00:10]}  Re7 {[%clk 0:00:03]} 43. Rf5 {[%clk 0:00:09]}  Kd6 {[%clk 0:00:02]} 44. h5 {[%clk 0:00:09]}  Ra7 {[%clk 0:00:02]} 45. Nxe4+ {[%clk 0:00:09]}  Ke7 {[%clk 0:00:03]} 46. h6 {[%clk 0:00:07]}  Ra6 {[%clk 0:00:02]} 47. Rh5 {[%clk 0:00:06]}  Rg6+ {[%clk 0:00:03]} 48. Kf3 {[%clk 0:00:07]}  Rc8 {[%clk 0:00:03]} 49. h7 {[%clk 0:00:07]}  Rh8 {[%clk 0:00:04]} 50. f5 {[%clk 0:00:07]}  Rg1 {[%clk 0:00:03]} 51. d5 {[%clk 0:00:06]}  f6 {[%clk 0:00:03]} 52. d6+ {[%clk 0:00:06]}  Kf7 {[%clk 0:00:03]} 53. Rh6 {[%clk 0:00:07]}  Kg7 {[%clk 0:00:03]} 54. Rxf6 {[%clk 0:00:07]}  Rd1 {[%clk 0:00:03]} 55. Rg6+ {[%clk 0:00:06]}  Kf8 {[%clk 0:00:03]} 56. Kf4 {[%clk 0:00:06]}  Rxh7 {[%clk 0:00:03]} 57. Ke5 {[%clk 0:00:06]}  Rh2 {[%clk 0:00:04]} 58. Rf6+ {[%clk 0:00:06]}  Ke8 {[%clk 0:00:03]} 59. Re6+ {[%clk 0:00:07]}  Kd8 {[%clk 0:00:03]} 60. Rg6 {[%clk 0:00:08]}  Kd7 {[%clk 0:00:03]} 61. Nf6+ {[%clk 0:00:08]}  Kc6 {[%clk 0:00:03]} 62. Ne4 {[%clk 0:00:09]}  Kd7 {[%clk 0:00:03]} 63. Rg7+ {[%clk 0:00:09]}  Kc6 {[%clk 0:00:03]} 64. f4 {[%clk 0:00:09]}  Rd5+ {[%clk 0:00:03]} 65. Ke6 {[%clk 0:00:09]}  Rh6+ {[%clk 0:00:03]} 66. f6 {[%clk 0:00:09]}  Rd3 {[%clk 0:00:04]} 67. Rc7+ {[%clk 0:00:09]}  Kb6 {[%clk 0:00:04]} 68. Rc3 {[%clk 0:00:09]}  Rd1 {[%clk 0:00:04]} 69. d7 {[%clk 0:00:09]}  Rhh1 {[%clk 0:00:01]} 70. Nd6 {[%clk 0:00:09]}  Rxd6+ {[%clk 0:00:01]} 71. Kxd6 {[%clk 0:00:10]}  Rc1 {[%clk 0:00:01]} 72. Rxc1 {[%clk 0:00:09]} 1-0


[Site "https://www.chess.com"]

[Event "Titled Tuesday Blitz November 29 Late 2022"]
[White "Yeritsyan, Hayk"]
[Black "Howell, David W L"]
[WhiteFideId "13307320"]
[BlackFideId "410608"]
[WhiteElo "2443"]
[BlackElo "2567"]
[Result "0-1"]
[Round "07"]
[TimeControl "180+1"]
[Date "2022.11.30"]
[WhiteClock "0:01:42"]
[BlackClock "0:01:39"]

1. d4 {[%clk 0:02:47]}  Nc6 {[%clk 0:03:00]} 2. Nf3 {[%clk 0:02:47]}  d5 {[%clk 0:03:00]} 3. Bf4 {[%clk 0:02:47]}  Bg4 {[%clk 0:03:00]} 4. e3 {[%clk 0:02:47]}  e6 {[%clk 0:03:00]} 5. Be2 {[%clk 0:02:47]}  Bd6 {[%clk 0:03:00]} 6. Bxd6 {[%clk 0:02:47]}  cxd6 {[%clk 0:03:00]} 7. O-O {[%clk 0:02:48]}  Nf6 {[%clk 0:02:55]} 8. c4 {[%clk 0:02:48]}  dxc4 {[%clk 0:02:44]} 9. Bxc4 {[%clk 0:02:48]}  Qb6 {[%clk 0:02:38]} 10. Nbd2 {[%clk 0:02:41]}  O-O {[%clk 0:02:28]} 11. Qb3 {[%clk 0:02:36]}  Qxb3 {[%clk 0:02:19]} 12. Bxb3 {[%clk 0:02:27]}  Rfc8 {[%clk 0:02:20]} 13. a3 {[%clk 0:02:19]}  Na5 {[%clk 0:02:11]} 14. Rac1 {[%clk 0:02:19]}  Bxf3 {[%clk 0:02:06]} 15. gxf3 {[%clk 0:02:13]}  Kf8 {[%clk 0:02:04]} 16. Rfd1 {[%clk 0:02:10]}  Ke7 {[%clk 0:01:58]} 17. Kf1 {[%clk 0:02:10]}  d5 {[%clk 0:01:42]} 18. Ke2 {[%clk 0:02:04]}  Ne8 {[%clk 0:01:42]} 19. Ba4 {[%clk 0:01:54]}  Nd6 {[%clk 0:01:41]} 20. Bb5 {[%clk 0:01:53]}  Nxb5 {[%clk 0:01:41]} 21. Kd3 {[%clk 0:01:42]}  Nd6 {[%clk 0:01:39]} 0-1


[Site "https://www.chess.com"]

[Event "Titled Tuesday Blitz November 29 Late 2022"]
[White "Abasov, Nijat"]
[Black "Jaracz, Pawel"]
[WhiteFideId "13402960"]
[BlackFideId "1102222"]
[WhiteElo "2546"]
[BlackElo "2459"]
[Result "1-0"]
[Round "08"]
[TimeControl "180+1"]
[Date "2022.11.30"]
[WhiteClock "0:01:37"]
[BlackClock "0:00:23"]

1. c4 {[%clk 0:03:00]}  c6 {[%clk 0:02:57]} 2. Nf3 {[%clk 0:03:00]}  d5 {[%clk 0:02:56]} 3. e3 {[%clk 0:03:00]}  Nf6 {[%clk 0:02:56]} 4. Nc3 {[%clk 0:03:01]}  e6 {[%clk 0:02:54]} 5. d4 {[%clk 0:03:00]}  a6 {[%clk 0:02:52]} 6. b3 {[%clk 0:02:57]}  Bb4 {[%clk 0:02:51]} 7. Bb2 {[%clk 0:02:57]}  Qe7 {[%clk 0:02:51]} 8. Bd3 {[%clk 0:02:56]}  Nbd7 {[%clk 0:02:51]} 9. O-O {[%clk 0:02:56]}  O-O {[%clk 0:02:52]} 10. a3 {[%clk 0:02:54]}  Ba5 {[%clk 0:02:34]} 11. b4 {[%clk 0:02:53]}  Bc7 {[%clk 0:02:34]} 12. e4 {[%clk 0:02:54]}  dxc4 {[%clk 0:02:30]} 13. Bxc4 {[%clk 0:02:53]}  e5 {[%clk 0:02:30]} 14. d5 {[%clk 0:02:53]}  Nb6 {[%clk 0:02:28]} 15. Bb3 {[%clk 0:02:49]}  cxd5 {[%clk 0:02:21]} 16. exd5 {[%clk 0:02:50]}  Bg4 {[%clk 0:02:19]} 17. h3 {[%clk 0:02:48]}  Bh5 {[%clk 0:02:18]} 18. Re1 {[%clk 0:02:39]}  Bd6 {[%clk 0:02:13]} 19. Qd3 {[%clk 0:02:32]}  Bg6 {[%clk 0:01:37]} 20. Qe3 {[%clk 0:02:19]}  Nfd7 {[%clk 0:01:36]} 21. Ne4 {[%clk 0:02:13]}  Bxe4 {[%clk 0:01:35]} 22. Qxe4 {[%clk 0:02:14]}  f5 {[%clk 0:01:26]} 23. Qe3 {[%clk 0:02:14]}  Qf6 {[%clk 0:01:19]} 24. Nxe5 {[%clk 0:02:08]}  Nxe5 {[%clk 0:00:42]} 25. Bxe5 {[%clk 0:02:09]}  Bxe5 {[%clk 0:00:42]} 26. d6+ {[%clk 0:01:53]}  Kh8 {[%clk 0:00:41]} 27. Qxe5 {[%clk 0:01:54]}  Rad8 {[%clk 0:00:37]} 28. Rad1 {[%clk 0:01:53]}  g6 {[%clk 0:00:28]} 29. Qe7 {[%clk 0:01:47]}  Rd7 {[%clk 0:00:27]} 30. Re6 {[%clk 0:01:35]}  Qxe7 {[%clk 0:00:23]} 31. dxe7 {[%clk 0:01:36]}  Rxd1+ {[%clk 0:00:23]} 32. Bxd1 {[%clk 0:01:37]} 1-0


[Site "https://www.chess.com"]

[Event "Titled Tuesday Blitz November 29 Late 2022"]
[White "Adel, Sara"]
[Black "Jimenez, Joaquin"]
[WhiteFideId "10616764"]
[BlackFideId "109860"]
[WhiteElo "1994"]
[BlackElo "2163"]
[Result "0-1"]
[Round "08"]
[TimeControl "180+1"]
[Date "2022.11.30"]
[WhiteClock "0:00:13"]
[BlackClock "0:02:12"]

1. e4 {[%clk 0:02:59]}  e6 {[%clk 0:02:59]} 2. d4 {[%clk 0:02:58]}  d5 {[%clk 0:02:59]} 3. Nd2 {[%clk 0:02:59]}  Nc6 {[%clk 0:02:55]} 4. c3 {[%clk 0:02:57]}  e5 {[%clk 0:02:54]} 5. Ngf3 {[%clk 0:02:51]}  exd4 {[%clk 0:02:52]} 6. cxd4 {[%clk 0:02:49]}  Bg4 {[%clk 0:02:48]} 7. Bb5 {[%clk 0:02:45]}  Bb4 {[%clk 0:02:42]} 8. O-O {[%clk 0:02:43]}  Bxd2 {[%clk 0:02:41]} 9. Qxd2 {[%clk 0:02:40]}  Bxf3 {[%clk 0:02:39]} 10. gxf3 {[%clk 0:02:41]}  Ne7 {[%clk 0:02:37]} 11. Qg5 {[%clk 0:02:37]}  O-O {[%clk 0:02:35]} 12. e5 {[%clk 0:02:27]}  Nxd4 {[%clk 0:02:29]} 13. Kh1 {[%clk 0:02:10]}  Nxb5 {[%clk 0:02:27]} 14. Rg1 {[%clk 0:02:10]}  Ng6 {[%clk 0:02:27]} 15. Qg4 {[%clk 0:02:09]}  Qc8 {[%clk 0:02:23]} 16. Qh5 {[%clk 0:02:07]}  Nd4 {[%clk 0:02:19]} 17. f4 {[%clk 0:02:06]}  Qf5 {[%clk 0:02:18]} 18. Qxf5 {[%clk 0:02:03]}  Nxf5 {[%clk 0:02:17]} 19. Rg5 {[%clk 0:02:04]}  Nge7 {[%clk 0:02:17]} 20. Bd2 {[%clk 0:02:04]}  f6 {[%clk 0:02:16]} 21. exf6 {[%clk 0:02:03]}  Rxf6 {[%clk 0:02:16]} 22. Rc1 {[%clk 0:02:03]}  c6 {[%clk 0:02:15]} 23. Rcg1 {[%clk 0:02:02]}  Rg6 {[%clk 0:02:14]} 24. Rxg6 {[%clk 0:01:59]}  Nxg6 {[%clk 0:02:13]} 25. Re1 {[%clk 0:01:57]}  Kf7 {[%clk 0:02:12]} 26. Kg2 {[%clk 0:01:53]}  Re8 {[%clk 0:02:12]} 27. Kf3 {[%clk 0:01:52]}  Rxe1 {[%clk 0:02:11]} 28. Bxe1 {[%clk 0:01:52]}  Nd4+ {[%clk 0:02:11]} 29. Ke3 {[%clk 0:01:52]}  Nc2+ {[%clk 0:02:11]} 30. Kd2 {[%clk 0:00:13]}  Nxe1 {[%clk 0:02:12]} 0-1


[Site "https://www.chess.com"]

[Event "Titled Tuesday Blitz November 29 Late 2022"]
[White "Adla, Diego"]
[Black "Preotu, Razvan"]
[WhiteFideId "100072"]
[BlackFideId "2613280"]
[WhiteElo "2377"]
[BlackElo "2407"]
[Result "1-0"]
[Round "08"]
[TimeControl "180+1"]
[Date "2022.11.30"]
[WhiteClock "0:00:25"]
[BlackClock "0:00:09"]

1. Nf3 {[%clk 0:03:00]}  c5 {[%clk 0:02:59]} 2. c4 {[%clk 0:03:00]}  Nc6 {[%clk 0:02:58]} 3. d4 {[%clk 0:02:59]}  cxd4 {[%clk 0:02:57]} 4. Nxd4 {[%clk 0:02:59]}  Nf6 {[%clk 0:02:58]} 5. Nc3 {[%clk 0:02:59]}  e6 {[%clk 0:02:58]} 6. g3 {[%clk 0:02:58]}  Qb6 {[%clk 0:02:56]} 7. Ndb5 {[%clk 0:02:55]}  Ne5 {[%clk 0:02:55]} 8. Bf4 {[%clk 0:02:52]}  Nfg4 {[%clk 0:02:52]} 9. e3 {[%clk 0:02:42]}  a6 {[%clk 0:02:44]} 10. h3 {[%clk 0:02:31]}  axb5 {[%clk 0:02:20]} 11. hxg4 {[%clk 0:02:31]}  Qc6 {[%clk 0:02:16]} 12. cxb5 {[%clk 0:02:24]}  Qxh1 {[%clk 0:02:09]} 13. Bxe5 {[%clk 0:02:24]}  f6 {[%clk 0:02:03]} 14. Bd6 {[%clk 0:02:21]}  h5 {[%clk 0:01:31]} 15. Bxf8 {[%clk 0:02:13]}  Kxf8 {[%clk 0:01:32]} 16. Qd6+ {[%clk 0:02:04]}  Kf7 {[%clk 0:01:32]} 17. g5 {[%clk 0:02:04]}  Qf3 {[%clk 0:01:14]} 18. Be2 {[%clk 0:02:02]}  Qf5 {[%clk 0:01:14]} 19. O-O-O {[%clk 0:01:55]}  Qxg5 {[%clk 0:01:13]} 20. Ne4 {[%clk 0:01:44]}  Qe5 {[%clk 0:01:13]} 21. Qb4 {[%clk 0:01:37]}  d5 {[%clk 0:01:12]} 22. Nd6+ {[%clk 0:01:28]}  Kg8 {[%clk 0:01:11]} 23. Kb1 {[%clk 0:01:27]}  g5 {[%clk 0:00:53]} 24. Bd3 {[%clk 0:01:14]}  h4 {[%clk 0:00:50]} 25. Qc5 {[%clk 0:00:59]}  Bd7 {[%clk 0:00:29]} 26. Qc7 {[%clk 0:00:57]}  Be8 {[%clk 0:00:30]} 27. Qe7 {[%clk 0:00:53]}  f5 {[%clk 0:00:21]} 28. Nxe8 {[%clk 0:00:51]}  Rh6 {[%clk 0:00:22]} 29. f4 {[%clk 0:00:46]}  Qh8 {[%clk 0:00:19]} 30. fxg5 {[%clk 0:00:33]}  Qh7 {[%clk 0:00:19]} 31. Nf6+ {[%clk 0:00:31]}  Rxf6 {[%clk 0:00:19]} 32. Qxf6 {[%clk 0:00:32]}  hxg3 {[%clk 0:00:16]} 33. g6 {[%clk 0:00:29]}  Qg7 {[%clk 0:00:16]} 34. Qxg7+ {[%clk 0:00:29]}  Kxg7 {[%clk 0:00:17]} 35. Rg1 {[%clk 0:00:30]}  Kxg6 {[%clk 0:00:13]} 36. Rxg3+ {[%clk 0:00:31]}  Kf6 {[%clk 0:00:13]} 37. Rh3 {[%clk 0:00:31]}  b6 {[%clk 0:00:11]} 38. Rh7 {[%clk 0:00:30]}  Rg8 {[%clk 0:00:11]} 39. Rb7 {[%clk 0:00:29]}  Rg3 {[%clk 0:00:12]} 40. Rxb6 {[%clk 0:00:28]}  Rxe3 {[%clk 0:00:13]} 41. Kc2 {[%clk 0:00:28]}  f4 {[%clk 0:00:11]} 42. Rb8 {[%clk 0:00:29]}  Ke7 {[%clk 0:00:11]} 43. b6 {[%clk 0:00:28]}  f3 {[%clk 0:00:11]} 44. b7 {[%clk 0:00:27]}  f2 {[%clk 0:00:11]} 45. Rf8 {[%clk 0:00:26]}  Kxf8 {[%clk 0:00:08]} 46. b8=Q+ {[%clk 0:00:26]}  Kg7 {[%clk 0:00:09]} 47. Qf4 {[%clk 0:00:25]} 1-0


[Site "https://www.chess.com"]

[Event "Titled Tuesday Blitz November 29 Late 2022"]
[White "Aguilar, Juan"]
[Black "Di Berardino, Diego Rafael"]
[WhiteFideId "3800091"]
[BlackFideId "2105446"]
[WhiteElo "2532"]
[BlackElo "2442"]
[Result "1-0"]
[Round "08"]
[TimeControl "180+1"]
[Date "2022.11.30"]
[WhiteClock "0:00:24"]
[BlackClock "0:00:02"]

1. d4 {[%clk 0:02:59]}  Nf6 {[%clk 0:02:58]} 2. c4 {[%clk 0:02:59]}  e6 {[%clk 0:02:56]} 3. Nf3 {[%clk 0:03:00]}  d5 {[%clk 0:02:56]} 4. g3 {[%clk 0:02:59]}  Be7 {[%clk 0:02:56]} 5. Bg2 {[%clk 0:02:59]}  O-O {[%clk 0:02:57]} 6. O-O {[%clk 0:02:58]}  dxc4 {[%clk 0:02:58]} 7. Qc2 {[%clk 0:02:58]}  a6 {[%clk 0:02:58]} 8. a4 {[%clk 0:02:56]}  Bd7 {[%clk 0:02:58]} 9. Qxc4 {[%clk 0:02:54]}  Bc6 {[%clk 0:02:58]} 10. Bf4 {[%clk 0:02:49]}  a5 {[%clk 0:02:55]} 11. Nc3 {[%clk 0:02:41]}  Na6 {[%clk 0:02:55]} 12. Rfe1 {[%clk 0:02:35]}  Nb4 {[%clk 0:02:52]} 13. Qb3 {[%clk 0:02:33]}  Bd5 {[%clk 0:02:27]} 14. Qd1 {[%clk 0:02:23]}  Ne4 {[%clk 0:02:21]} 15. Qb1 {[%clk 0:02:12]}  Nd6 {[%clk 0:01:47]} 16. e4 {[%clk 0:02:07]}  Bb3 {[%clk 0:01:44]} 17. Rc1 {[%clk 0:02:03]}  Nc4 {[%clk 0:01:31]} 18. Bf1 {[%clk 0:01:46]}  g5 {[%clk 0:01:25]} 19. Be3 {[%clk 0:01:43]}  g4 {[%clk 0:01:21]} 20. Nd2 {[%clk 0:01:37]}  Nxd2 {[%clk 0:01:20]} 21. Bxd2 {[%clk 0:01:37]}  Qxd4 {[%clk 0:01:19]} 22. Be3 {[%clk 0:01:34]}  Qe5 {[%clk 0:00:45]} 23. Ra3 {[%clk 0:01:25]}  Bc2 {[%clk 0:00:45]} 24. Rxc2 {[%clk 0:01:24]}  Nxc2 {[%clk 0:00:46]} 25. Qxc2 {[%clk 0:01:25]}  Bxa3 {[%clk 0:00:46]} 26. bxa3 {[%clk 0:01:23]}  c6 {[%clk 0:00:42]} 27. Ne2 {[%clk 0:01:16]}  Rfd8 {[%clk 0:00:36]} 28. Nf4 {[%clk 0:01:11]}  Qa1 {[%clk 0:00:30]} 29. Kg2 {[%clk 0:01:07]}  Qd1 {[%clk 0:00:24]} 30. Qc3 {[%clk 0:01:04]}  Qf3+ {[%clk 0:00:20]} 31. Kg1 {[%clk 0:01:04]}  Rd1 {[%clk 0:00:10]} 32. Nh5 {[%clk 0:00:51]}  Rxf1+ {[%clk 0:00:10]} 33. Kxf1 {[%clk 0:00:49]}  Qd1+ {[%clk 0:00:11]} 34. Qe1 {[%clk 0:00:47]}  Qxe1+ {[%clk 0:00:11]} 35. Kxe1 {[%clk 0:00:46]}  b5 {[%clk 0:00:11]} 36. Nf6+ {[%clk 0:00:42]}  Kf8 {[%clk 0:00:09]} 37. Nxg4 {[%clk 0:00:42]}  bxa4 {[%clk 0:00:08]} 38. Bc5+ {[%clk 0:00:41]}  Ke8 {[%clk 0:00:08]} 39. Nf6+ {[%clk 0:00:38]}  Kd8 {[%clk 0:00:08]} 40. Nxh7 {[%clk 0:00:36]}  Rb8 {[%clk 0:00:07]} 41. Ng5 {[%clk 0:00:35]}  Ke8 {[%clk 0:00:06]} 42. h4 {[%clk 0:00:34]}  Rb1+ {[%clk 0:00:06]} 43. Ke2 {[%clk 0:00:33]}  Rc1 {[%clk 0:00:07]} 44. Bd4 {[%clk 0:00:29]}  c5 {[%clk 0:00:05]} 45. Kd2 {[%clk 0:00:27]}  Rc4 {[%clk 0:00:02]} 46. Bc3 {[%clk 0:00:27]}  f5 {[%clk 0:00:02]} 47. h5 {[%clk 0:00:24]} 1-0


[Site "https://www.chess.com"]

[Event "Titled Tuesday Blitz November 29 Late 2022"]
[White "Ankerst, Mihael"]
[Black "Floresvillar Gonzalez, Luis Migu"]
[WhiteFideId "14602369"]
[BlackFideId "5100542"]
[WhiteElo "2318"]
[BlackElo "2040"]
[Result "1-0"]
[Round "08"]
[TimeControl "180+1"]
[Date "2022.11.30"]
[WhiteClock "0:01:23"]
[BlackClock "0:00:02"]

1. e4 {[%clk 0:02:52]}  c5 {[%clk 0:02:59]} 2. d4 {[%clk 0:02:53]}  cxd4 {[%clk 0:02:58]} 3. Nf3 {[%clk 0:02:53]}  Nc6 {[%clk 0:02:56]} 4. Nxd4 {[%clk 0:02:54]}  Nf6 {[%clk 0:02:55]} 5. Nc3 {[%clk 0:02:53]}  d6 {[%clk 0:02:52]} 6. Bc4 {[%clk 0:02:52]}  e6 {[%clk 0:02:49]} 7. Be3 {[%clk 0:02:51]}  Be7 {[%clk 0:02:48]} 8. Bb3 {[%clk 0:02:51]}  Nxd4 {[%clk 0:02:40]} 9. Qxd4 {[%clk 0:02:49]}  Bd7 {[%clk 0:02:37]} 10. O-O-O {[%clk 0:02:48]}  a5 {[%clk 0:02:25]} 11. g4 {[%clk 0:02:47]}  h6 {[%clk 0:02:22]} 12. a4 {[%clk 0:02:43]}  e5 {[%clk 0:02:06]} 13. Qc4 {[%clk 0:02:42]}  Be6 {[%clk 0:02:03]} 14. Qb5+ {[%clk 0:02:42]}  Qd7 {[%clk 0:01:58]} 15. f3 {[%clk 0:02:41]}  Bxb3 {[%clk 0:01:43]} 16. Qxb3 {[%clk 0:02:27]}  Rc8 {[%clk 0:01:40]} 17. Rd3 {[%clk 0:02:26]}  O-O {[%clk 0:01:32]} 18. h4 {[%clk 0:02:26]}  Nh7 {[%clk 0:01:19]} 19. Nd5 {[%clk 0:02:21]}  Bd8 {[%clk 0:01:12]} 20. Rg1 {[%clk 0:02:06]}  Bxh4 {[%clk 0:01:00]} 21. Nb6 {[%clk 0:02:05]}  Qe7 {[%clk 0:00:53]} 22. Nxc8 {[%clk 0:02:05]}  Rxc8 {[%clk 0:00:53]} 23. Rgd1 {[%clk 0:02:03]}  Rc6 {[%clk 0:00:50]} 24. Bb6 {[%clk 0:02:02]}  Ng5 {[%clk 0:00:40]} 25. Bxa5 {[%clk 0:01:58]}  Ne6 {[%clk 0:00:33]} 26. Bb4 {[%clk 0:01:57]}  Nd4 {[%clk 0:00:28]} 27. Qa3 {[%clk 0:01:57]}  Bg5+ {[%clk 0:00:22]} 28. Kb1 {[%clk 0:01:55]}  Qc7 {[%clk 0:00:20]} 29. c3 {[%clk 0:01:54]}  Ne6 {[%clk 0:00:17]} 30. Bxd6 {[%clk 0:01:53]}  Qb6 {[%clk 0:00:17]} 31. Bxe5 {[%clk 0:01:44]}  Nf4 {[%clk 0:00:13]} 32. a5 {[%clk 0:01:38]}  Qa6 {[%clk 0:00:12]} 33. Bxf4 {[%clk 0:01:37]}  Bxf4 {[%clk 0:00:11]} 34. Rd8+ {[%clk 0:01:25]}  Kh7 {[%clk 0:00:10]} 35. Qb3 {[%clk 0:01:25]}  Bc7 {[%clk 0:00:10]} 36. Rc8 {[%clk 0:01:24]}  Bxa5 {[%clk 0:00:09]} 37. Rxc6 {[%clk 0:01:23]}  Qxc6 {[%clk 0:00:08]} 38. Qxf7 {[%clk 0:01:24]}  b5 {[%clk 0:00:05]} 39. Rd7 {[%clk 0:01:23]}  Qg6 {[%clk 0:00:04]} 40. Qxg6+ {[%clk 0:01:22]}  Kxg6 {[%clk 0:00:05]} 41. Rd5 {[%clk 0:01:23]}  Bc7 {[%clk 0:00:03]} 42. Rxb5 {[%clk 0:01:23]}  Kf6 {[%clk 0:00:02]} 43. Rc5 {[%clk 0:01:23]} 1-0


[Site "https://www.chess.com"]